bitfinex-derivatives/quotes_ETHF0:USTF0_20260316
["timestamp","ask_amount","ask_price","bid_price","bid_amount"]
[1773639005910,5.90099695,2268.9,2267.6,0.00402265]
[1773639006112,8.07824518,2269.3,2267.6,0.00402265]
[1773639006113,5.90099695,2268.7,2267.6,0.00402265]
[1773639008015,5.90099695,2268.5,2267.0,4.0543474]
[1773639009032,5.90099695,2268.5,2267.0,4.05835198]
[1773639009515,5.90099695,2268.5,2267.2,4.04637117]
[1773639010608,5.90099695,2268.5,2267.1,4.10813413]
[1773639010808,2.66739017,2268.5,2267.1,4.10813413]
[1773639011013,5.90099695,2268.4,2267.1,4.10813413]
[1773639015315,5.90099695,2268.4,2267.2,4.11855604]
[1773639020223,6.12602293,2268.4,2267.2,4.11855604]
[1773639022825,2.66739017,2268.2,2267.0,3.83553039]
[1773639023031,5.57787445,2268.1,2267.0,0.00400458]
[1773639023235,5.57787445,2268.1,2267.0,3.83553039]
[1773639023536,2.66739017,2267.6,2266.4,3.75789389]
[1773639023734,5.57787445,2267.6,2266.4,3.75789389]
[1773639024633,5.57787445,2267.6,2266.4,3.76283624]
[1773639028533,5.57787445,2267.6,2266.4,0.00494235]
[1773639028729,5.57787445,2267.5,2266.4,3.80923103]
[1773639029028,5.57787445,2267.5,2266.4,0.00494235]
[1773639029230,5.57787445,2266.5,2265.1,3.80225445]
[1773639029435,5.57787445,2266.4,2265.1,3.80225445]
[1773639029633,5.57787445,2266.4,2265.3,3.80175016]
[1773639030234,5.58133448,2266.4,2265.3,3.80561178]
[1773639031640,5.58133448,2266.4,2265.6,3.75263748]
[1773639036045,5.80047054,2266.4,2265.4,3.59852493]
[1773639038342,5.80047054,2266.4,2265.5,2.66739017]
[1773639038539,5.80047054,2266.4,2265.6,3.5752535]
[1773639039440,5.80047054,2266.4,2265.4,3.55232468]
[1773639041944,5.58133448,2266.4,2265.8,3.3590701]
[1773639043947,5.58133448,2266.4,2265.7,2.66739017]
[1773639043948,5.57787445,2267.2,2266.4,3.95616014]
[1773639044144,5.57787445,2267.2,2266.1,3.95616014]
[1773639045149,5.58227731,2267.2,2266.1,3.95616014]
[1773639045946,5.58227731,2267.2,2266.5,3.95161292]
[1773639046944,5.58227731,2267.2,2266.1,3.92077461]
[1773639048553,5.58227731,2267.2,2266.7,3.94424608]
[1773639052055,0.00440286,2267.2,2266.7,3.94424608]
[1773639052249,5.86780039,2267.2,2266.7,3.94424608]
[1773639052955,0.00440286,2267.2,2266.7,3.94424608]
[1773639053145,3.786,2267.3,2266.7,3.94424608]
[1773639054157,3.79060331,2267.3,2266.7,3.94424608]
[1773639054355,5.86339753,2267.2,2266.7,3.94424608]
[1773639054756,9.65400084,2267.3,2266.7,3.94424608]
[1773639055255,5.79246798,2267.2,2266.7,3.94424608]
[1773639056966,0.00460331,2267.3,2267.0,3.70267631]
[1773639057161,5.79246798,2268.0,2267.3,3.698073]
[1773639057461,5.79246798,2268.0,2267.0,0.0055901]
[1773639057462,5.79246798,2268.0,2267.1,3.698073]
[1773639057666,2.66739017,2267.7,2266.2,3.68291254]
[1773639057868,5.79246798,2267.5,2266.2,3.68291254]
[1773639058162,5.79246798,2267.3,2266.2,3.68291254]
[1773639058563,5.79646539,2267.3,2266.2,3.68834559]
[1773639062663,5.79646539,2267.3,2265.9,3.29693019]
[1773639062664,5.79246798,2267.0,2265.9,3.29693019]
[1773639063169,5.79246798,2266.8,2265.5,3.29693019]
[1773639063762,5.79246798,2266.8,2265.5,3.30144844]
[1773639065773,5.79246798,2266.8,2265.8,3.2994866]
[1773639068079,6.00825675,2266.8,2265.8,3.2994866]
[1773639071480,6.00825675,2266.8,2265.8,3.0494866]
[1773639071871,5.79246798,2266.6,2264.9,2.97599178]
[1773639072075,5.79246798,2266.3,2264.9,2.97599178]
[1773639072274,5.79246798,2266.1,2264.9,2.97599178]
[1773639073279,5.79246798,2266.1,2264.9,2.98096194]
[1773639074375,5.79246798,2266.1,2265.0,9.773]
[1773639074575,5.79246798,2266.1,2265.1,3.34229948]
[1773639076683,6.0146338,2266.1,2265.1,3.34229948]
[1773639079283,6.0146338,2266.1,2264.9,3.42592526]
[1773639082381,6.0146338,2266.1,2265.1,3.3643528]
[1773639083088,6.0146338,2266.1,2264.9,0.00497016]
[1773639083089,6.0146338,2266.1,2265.0,3.17415852]
[1773639085283,6.0146338,2266.1,2264.9,0.00497016]
[1773639085788,5.57836564,2265.9,2264.3,2.68211804]
[1773639085990,11.72205589,2266.0,2264.3,2.68211804]
[1773639085991,5.57836564,2265.7,2264.3,2.68211804]
[1773639086186,5.57836564,2265.5,2264.3,2.68211804]
[1773639086891,5.58319095,2265.5,2264.3,2.685266]
[1773639092089,5.58319095,2265.5,2264.5,2.7007586]
[1773639092490,5.58319095,2265.5,2264.3,2.70390656]
[1773639092987,5.57836564,2265.3,2264.3,0.00314796]
[1773639094883,5.86385382,2265.3,2264.3,0.00314796]
[1773639095084,5.86385382,2265.3,2264.3,2.2767361]
[1773639095690,5.57836564,2264.3,2262.7,2.30944594]
[1773639095894,5.57836564,2264.1,2262.7,12.22144594]
[1773639096093,5.57836564,2264.1,2262.8,2.30296802]
[1773639096497,5.57836564,2264.1,2262.8,2.30701786]
[1773639099604,5.57836564,2263.1,2261.7,2.45847037]
[1773639100498,5.58186093,2263.1,2261.7,2.46412803]
[1773639100897,5.58186093,2263.1,2261.8,9.758]
[1773639101104,5.58186093,2263.1,2261.9,2.44607832]
[1773639101701,5.57836564,2262.9,2260.8,9.835]
[1773639102009,5.57836564,2262.7,2261.0,2.47232695]
[1773639102606,5.57836564,2262.7,2261.2,2.47232695]
[1773639104900,5.57836564,2262.7,2261.4,2.41014848]
[1773639105702,5.57836564,2262.7,2261.6,2.40038239]
[1773639105908,5.57836564,2262.9,2261.8,2.39421676]
[1773639106506,5.58186093,2263.1,2262.0,2.39421676]
[1773639106906,5.58186093,2263.1,2262.2,2.34539132]
[1773639107615,5.58186093,2263.1,2262.1,9.868]
[1773639107616,5.87836564,2264.0,2263.0,2.17351616]
[1773639107811,5.57293259,2263.8,2263.0,2.17351616]
[1773639108212,5.87836564,2264.0,2263.0,2.17351616]
[1773639108610,5.88334019,2264.0,2263.0,2.17672588]
[1773639109710,5.88334019,2264.0,2263.1,2.08136037]
[1773639110209,0.30497455,2264.0,2263.1,2.08136037]
[1773639110410,0.30497455,2264.0,2262.1,0.21833974]
[1773639110411,5.57836564,2263.7,2262.2,2.08136037]
[1773639110615,5.57836564,2263.7,2262.4,2.08136037]
[1773639111314,5.57836564,2263.7,2262.4,2.08669532]
[1773639111514,5.57836564,2263.7,2262.6,2.04345149]
[1773639111717,5.57836564,2263.7,2262.8,1.98351005]
[1773639111913,0.3,2263.0,2262.8,1.98351005]
[1773639112115,0.22957257,2263.0,2262.8,1.98351005]
[1773639114116,2.57e-06,2263.0,2262.8,1.98351005]
[1773639115719,5.68479207,2263.8,2262.8,1.98351005]
[1773639117922,5.68479207,2263.5,2262.9,1.80561321]
[1773639118117,5.68479207,2263.5,2262.9,12.17161321]
[1773639118418,5.68479207,2263.5,2262.4,0.00533495]
[1773639118419,5.68479207,2263.3,2262.5,1.80561321]
[1773639119317,5.68479207,2263.3,2262.6,1.79976741]
[1773639119824,5.90566207,2263.3,2262.6,1.79976741]
[1773639120027,5.90566207,2263.3,2262.7,10.434]
[1773639120228,5.90566207,2263.3,2262.7,12.1905146]
[1773639120427,0.22087,2263.2,2262.8,1.7565146]
[1773639120718,5.68479207,2263.3,2262.7,10.434]
[1773639121030,5.90566207,2263.1,2262.7,10.434]
[1773639121221,0.00497455,2264.0,2263.0,4.42220867]
[1773639121425,0.00497455,2264.0,2263.2,1.75182]
[1773639121727,5.68976662,2264.0,2263.2,1.75182]
[1773639122225,0.22087,2263.9,2263.2,1.75182]
[1773639122420,0.00497455,2264.0,2263.2,1.75182]
[1773639123027,0.22087,2263.9,2263.2,1.75182]
[1773639123728,0.00497455,2264.0,2263.4,1.74571782]
[1773639124124,0.22584455,2264.0,2263.4,1.74571782]
[1773639125027,5.68479207,2264.3,2263.4,1.74571782]
[1773639125230,5.90566207,2264.3,2263.4,1.74571782]
[1773639126029,5.91000009,2264.3,2263.4,1.74571782]
[1773639126426,5.68479207,2263.9,2263.4,1.74571782]
[1773639126731,5.68479207,2263.9,2263.1,1.64671845]
[1773639127031,5.90566207,2263.7,2263.1,1.64671845]
[1773639127224,0.00433802,2264.3,2263.1,1.64671845]
[1773639127448,0.22087,2263.8,2263.1,1.64671845]
[1773639127633,5.90566207,2263.8,2263.1,1.64671845]
[1773639127830,0.22087,2263.6,2263.1,1.64671845]
[1773639128130,5.68479207,2263.8,2263.1,1.64671845]
[1773639128326,0.22087,2263.7,2263.1,1.64671845]
[1773639128727,5.68479207,2264.0,2263.1,1.64671845]
[1773639129424,0.00433802,2264.3,2263.0,12.19138776]
[1773639129425,5.68479207,2263.6,2263.0,12.19138776]
[1773639130131,5.68479207,2264.2,2263.1,1.63758315]
[1773639130431,5.68479207,2263.9,2263.1,1.63758315]
[1773639131026,0.22087,2263.8,2263.1,1.63758315]
[1773639131428,0.22087,2263.7,2263.1,1.63758315]
[1773639131627,5.68479207,2263.9,2263.1,1.63758315]
[1773639132028,0.22087,2263.8,2263.1,1.63758315]
[1773639132527,0.22087,2263.7,2263.1,1.63758315]
[1773639132930,5.68479207,2263.9,2263.1,1.63758315]
[1773639133532,5.90566207,2263.7,2263.0,10.546]
[1773639133828,5.68479207,2263.7,2263.0,12.18879195]
[1773639134035,5.68479207,2265.0,2263.7,1.76065195]
[1773639134225,5.68479207,2265.0,2264.4,1.53979195]
[1773639134731,0.22087,2264.8,2264.4,1.53979195]
[1773639135131,0.22087,2264.7,2264.4,1.53979195]
[1773639135431,2.89698741,2265.8,2264.4,1.53979195]
[1773639135432,5.68814799,2264.8,2264.4,0.00333331]
[1773639136335,0.22087,2264.7,2264.4,0.00333331]
[1773639136530,5.68814799,2264.8,2264.4,0.00333331]
[1773639136726,0.22087,2264.7,2264.4,1.57296625]
[1773639137631,0.22087,2264.6,2264.4,1.57296625]
[1773639137833,0.00335592,2264.8,2264.4,1.57296625]
[1773639138033,0.22087,2264.7,2264.4,1.57296625]
[1773639138235,0.00335592,2264.8,2264.4,1.57296625]
[1773639138632,0.22087,2264.7,2264.4,1.57296625]
[1773639139038,0.22087,2264.6,2264.4,1.57296625]
[1773639139237,5.68814799,2264.8,2264.4,1.57296625]
[1773639139637,5.68814799,2264.8,2264.0,1.4807163]
[1773639140041,0.22087,2264.7,2264.2,1.4807163]
[1773639140544,0.22087,2264.6,2264.2,0.00381106]
[1773639140737,5.68814799,2264.8,2264.3,0.00328611]
[1773639141140,5.68814799,2264.8,2264.2,0.00381106]
[1773639141642,5.68814799,2264.8,2264.2,0.7093184]
[1773639141836,5.68814799,2264.8,2264.2,0.00381106]
[1773639142139,5.68814799,2264.8,2264.3,0.71309836]
[1773639142340,0.00335592,2264.8,2264.3,0.71309836]
[1773639142734,5.66029157,2264.8,2264.3,0.71309836]
[1773639143643,5.66029157,2264.8,2264.2,0.00381106]
[1773639144242,5.66029157,2264.8,2264.2,0.61565181]
[1773639145143,5.66029157,2264.8,2264.2,0.00381106]
[1773639146140,5.66029157,2264.8,2264.2,0.82539026]
[1773639146541,5.66029157,2264.8,2264.2,0.00381106]
[1773639146742,5.66029157,2264.8,2264.2,0.85250705]
[1773639146948,5.66029157,2264.8,2264.3,0.84869599]
[1773639148748,5.66029157,2264.8,2264.2,0.00381106]
[1773639152057,5.66029157,2264.8,2263.9,9.71045997]
[1773639152250,5.66029157,2264.8,2263.7,1.01427742]
[1773639152548,5.66029157,2264.8,2263.6,2.67632741]
[1773639152753,5.66029157,2264.8,2263.5,11.78173033]
[1773639153149,5.66029157,2264.8,2263.5,11.78523029]
[1773639153752,5.66029157,2264.8,2263.6,3.72860142]
[1773639154054,5.66029157,2264.8,2263.7,1.05227401]
[1773639155460,5.66029157,2264.8,2263.5,11.78331042]
[1773639158861,5.66029157,2264.8,2263.5,10.72149996]
[1773639159753,5.66029157,2264.8,2263.5,11.63498061]
[1773639160259,5.48649211,2264.6,2263.5,11.63498061]
[1773639161363,5.48649211,2264.6,2263.6,1.17781515]
[1773639163679,5.48649211,2264.6,2263.5,11.88229578]
[1773639166367,5.48649211,2264.6,2263.5,0.00349996]
[1773639166779,5.48649211,2264.4,2263.5,0.00349996]
[1773639167567,5.48649211,2264.4,2263.5,0.99332422]
[1773639168268,5.48649211,2264.4,2263.5,0.00349996]
[1773639171075,5.48649211,2264.4,2263.5,0.97316647]
[1773639172772,5.48649211,2264.4,2263.1,11.45239449]
[1773639172974,5.48649211,2264.4,2263.2,0.75839449]
[1773639173877,5.48649211,2264.4,2263.2,0.76182054]
[1773639175972,5.77193953,2264.2,2262.7,10.07324642]
[1773639176176,5.77193953,2263.8,2262.7,0.88793485]
[1773639176373,5.77193953,2263.8,2262.5,0.88793485]
[1773639176971,5.77193953,2263.8,2262.5,0.89350268]
[1773639181580,5.98737429,2263.8,2262.5,0.89350268]
[1773639181878,5.77193953,2263.8,2262.5,0.89350268]
[1773639183884,5.77193953,2263.8,2262.7,0.90653144]
[1773639184885,5.77193953,2263.8,2262.6,0.90018822]
[1773639187983,5.77193953,2263.8,2262.8,0.90944029]
[1773639191088,5.77193953,2263.8,2262.6,1.13341697]
[1773639191591,5.77193953,2263.8,2262.8,0.91244697]
[1773639191787,5.77193953,2263.8,2262.7,5.09583527]
[1773639191992,5.77193953,2263.8,2262.6,1.12685681]
[1773639192994,5.77193953,2263.8,2262.7,2.75038601]
[1773639193794,5.77193953,2263.8,2262.8,0.90834633]
[1773639195992,5.77193953,2263.6,2262.6,0.89749668]
[1773639196392,5.77193953,2263.6,2262.6,2.75683721]
[1773639198797,5.77193953,2263.6,2262.6,0.89749668]
[1773639199192,5.77193953,2263.4,2262.6,0.89749668]
[1773639199599,5.77193953,2263.4,2262.5,0.00556783]
[1773639199903,5.77193953,2263.4,2261.8,0.87242042]
[1773639200093,5.77193953,2263.2,2261.8,0.87242042]
[1773639200994,5.77650651,2263.2,2261.8,0.8772882]
[1773639202999,5.77650651,2263.2,2261.9,0.22104]
[1773639203200,5.77650651,2263.2,2262.2,0.76672704]
[1773639205603,5.77650651,2263.2,2262.1,0.22102]
[1773639205999,5.77650651,2263.2,2262.1,0.90226202]
[1773639206400,5.77650651,2263.2,2262.1,0.68124202]
[1773639206698,5.77650651,2263.2,2261.8,0.00486778]
[1773639206699,5.58046101,2263.0,2261.9,0.68124202]
[1773639206900,5.58046101,2262.8,2261.8,0.00486778]
[1773639209093,5.58046101,2262.8,2261.4,0.22109]
[1773639209299,5.58046101,2262.8,2261.4,2.89896888]
[1773639209501,5.58046101,2262.8,2261.4,7.97125457]
[1773639209700,5.58046101,2262.8,2261.5,0.32239158]
[1773639209901,5.58046101,2262.8,2262.0,0.32239158]
[1773639210103,5.58046101,2262.8,2262.0,0.32579057]
[1773639210899,5.58046101,2262.8,2262.0,0.00339899]
[1773639211700,5.58046101,2262.8,2261.4,0.28666121]
[1773639211900,2.90335586,2263.2,2261.4,0.28666121]
[1773639211901,5.77599185,2263.2,2261.4,0.28666121]
[1773639212206,5.77142487,2263.5,2262.7,0.27992942]
[1773639212804,5.77142487,2263.5,2262.4,10.017]
[1773639213002,5.76744978,2263.3,2261.7,0.28155046]
[1773639213208,5.76744978,2263.1,2261.7,0.28568305]
[1773639213408,5.76744978,2263.1,2261.8,0.28155046]
[1773639213804,5.76744978,2263.1,2262.0,0.38918341]
[1773639215702,5.76744978,2263.1,2261.7,0.00413259]
[1773639215906,5.76744978,2263.1,2261.8,0.32330691]
[1773639219812,5.76744978,2263.1,2262.0,0.36841107]
[1773639220217,5.76744978,2263.1,2262.2,0.36282052]
[1773639224925,5.76744978,2263.1,2261.7,0.33217465]
[1773639228123,5.76744978,2263.1,2261.7,0.55322465]
[1773639228326,5.76744978,2263.1,2261.9,0.31004947]
[1773639233137,5.76744978,2263.1,2262.1,0.31508121]
[1773639238734,5.76744978,2263.1,2261.8,9.72]
[1773639239029,5.76744978,2263.1,2261.9,0.25891116]
[1773639240335,5.76744978,2263.1,2261.8,9.72]
[1773639240531,5.76744978,2263.1,2261.8,9.87826128]
[1773639240732,5.75687931,2263.0,2261.9,1.86066227]
[1773639241735,5.75687931,2263.0,2261.9,2.00163665]
[1773639242537,5.75687931,2263.0,2261.9,1.86066227]
[1773639242737,5.75608754,2262.8,2261.8,9.72]
[1773639244436,5.7601263,2262.6,2261.0,20.52160055]
[1773639244639,5.45872392,2262.2,2261.0,2.58701808]
[1773639244939,5.45872392,2262.2,2261.3,0.72076931]
[1773639245533,5.45872392,2262.2,2261.3,0.72576069]
[1773639245934,5.45872392,2262.2,2261.4,2.72060097]
[1773639246132,5.45872392,2262.2,2261.6,1.86066227]
[1773639246634,5.45872392,2262.2,2261.4,2.71305819]
[1773639251236,5.45872392,2262.2,2261.4,1.86066227]
[1773639251437,5.45872392,2262.2,2261.4,2.76094262]
[1773639252029,5.45872392,2262.2,2261.5,0.89557299]
[1773639254443,5.45872392,2262.2,2261.4,2.69385795]
[1773639254836,5.45872392,2262.2,2261.9,1.86128053]
[1773639255742,5.45872392,2262.2,2261.7,1.86128053]
[1773639257643,5.45872392,2262.2,2261.9,1.86128053]
[1773639263353,5.85608295,2262.8,2262.1,1.86128053]
[1773639263544,5.85608295,2262.5,2261.9,1.86128053]
[1773639264053,5.85608295,2261.9,2260.7,5.80812911]
[1773639264346,5.85608295,2261.5,2260.8,1.86128053]
[1773639264747,5.85608295,2261.5,2261.0,1.86128053]
[1773639265048,5.85608295,2261.3,2261.2,1.86128053]
[1773639265347,5.85608295,2261.3,2261.0,0.00343918]
[1773639265348,5.44970776,2261.4,2261.1,1.86128053]
[1773639265648,6.28393563,2261.4,2261.1,1.86128053]
[1773639265846,0.83422787,2261.4,2261.1,8.14815928]
[1773639266046,0.83422787,2261.4,2261.1,1.86128053]
[1773639266047,6.28393563,2261.4,2261.1,1.86128053]
[1773639266645,6.28393563,2261.4,2261.0,8.15159846]
[1773639267147,0.84793486,2261.3,2261.0,8.15159846]
[1773639267648,0.84793486,2261.3,2261.0,1.86471971]
[1773639268141,0.00938939,2261.3,2261.2,1.86128053]
[1773639268343,0.00938939,2261.3,2260.7,6.68580371]
[1773639268648,0.00938939,2261.1,2260.7,1.86128053]
[1773639269048,0.00347965,2261.5,2260.0,1.86128053]
[1773639269049,0.10393967,2260.9,2260.4,1.86128053]
[1773639269246,0.10393967,2260.9,2260.2,8.53958494]
[1773639269447,5.55364743,2260.8,2260.4,8.53958494]
[1773639269648,0.02647554,2260.7,2260.3,6.67830441]
[1773639269853,0.02647554,2260.7,2260.2,8.578317]
[1773639270442,5.15184629,2260.6,2260.4,1.86128053]
[1773639270646,0.23450628,2260.9,2260.5,1.86128053]
[1773639270850,0.27174248,2261.4,2260.6,6.70605577]
[1773639271041,0.27174248,2261.4,2260.7,1.86128053]
[1773639271243,0.27174248,2261.4,2260.9,1.86128053]
[1773639273050,0.552532,2261.2,2260.6,6.78727823]
[1773639273447,0.00347965,2261.5,2261.0,1.86128053]
[1773639273752,0.55601165,2261.5,2260.8,8.64855876]
[1773639274851,0.55601165,2261.5,2261.1,6.78693791]
[1773639275154,0.02683419,2261.7,2261.1,6.78693791]
[1773639275651,0.02683419,2261.7,2261.3,7.06320391]
[1773639275950,0.01184411,2261.9,2261.3,7.06320391]
[1773639276153,0.01184411,2261.9,2261.4,7.09646905]
[1773639277245,0.28064749,2262.4,2261.0,1.86128053]
[1773639277246,1.86128053,2262.5,2261.6,7.10041678]
[1773639277446,1.86128053,2262.3,2261.6,7.10041678]
[1773639277757,0.03285997,2262.2,2261.6,7.10041678]
[1773639278151,0.03711814,2262.2,2261.6,7.10516901]
[1773639278754,0.03711814,2262.2,2261.8,7.09304214]
[1773639279155,1.86128053,2262.4,2261.8,7.09304214]
[1773639279354,1.86128053,2262.4,2261.6,0.00475223]
[1773639279355,1.86128053,2262.2,2261.6,7.12689128]
[1773639279555,1.86128053,2262.4,2261.6,7.12689128]
[1773639279750,0.02003221,2262.1,2261.6,7.12689128]
[1773639280056,0.02444495,2262.1,2261.6,7.12689128]
[1773639281751,0.02444495,2262.1,2261.6,7.1200471]
[1773639282753,0.02444495,2262.1,2261.6,0.00475223]
[1773639282953,0.02444495,2262.1,2261.6,7.11949448]
[1773639284951,0.08604274,2261.9,2261.6,7.11841968]
[1773639285152,0.08604274,2261.9,2261.3,7.11366745]
[1773639285553,0.08604274,2261.7,2261.2,7.11366745]
[1773639286153,0.21552196,2261.7,2261.2,7.1192589]
[1773639286348,0.00441274,2262.1,2261.2,0.00559145]
[1773639286349,0.21552196,2261.5,2261.2,0.00559145]
[1773639286554,0.21552196,2261.5,2261.0,7.05379867]
[1773639286957,0.20508895,2261.9,2261.0,7.05379867]
[1773639287157,0.20508895,2261.7,2261.0,7.05379867]
[1773639287452,0.20508895,2261.7,2261.0,7.05707338]
[1773639290654,0.22402481,2261.9,2261.2,7.02681191]
[1773639290655,2.08530534,2261.9,2261.2,7.02681191]
[1773639290855,0.31369785,2261.6,2261.0,7.03008662]
[1773639291459,0.31369785,2261.4,2261.0,0.00327471]
[1773639291860,2.18224715,2261.3,2261.0,7.03052036]
[1773639292262,1.86128053,2261.3,2261.0,7.03052036]
[1773639292662,2.13914296,2261.3,2261.0,7.03052036]
[1773639292964,0.27786243,2261.2,2260.7,7.05993765]
[1773639293160,0.27458772,2261.4,2260.7,7.05993765]
[1773639293561,0.27458772,2261.4,2260.7,8.92121818]
[1773639293766,0.27458772,2261.4,2260.8,7.06613611]
[1773639294065,0.27458772,2261.4,2260.8,7.06995542]
[1773639295466,0.30037609,2261.2,2260.8,7.06995542]
[1773639297964,0.30037609,2261.2,2260.6,7.0649258]
[1773639298863,0.30037609,2261.2,2260.6,7.06832309]
[1773639299266,0.30037609,2261.2,2260.7,7.06815897]
[1773639299560,0.30037609,2261.2,2260.7,5.06815897]
[1773639299766,2.33270707,2260.8,2260.4,6.58500422]
[1773639299961,1.86128053,2261.0,2260.1,6.58500422]
[1773639300166,1.86128053,2261.0,2260.3,6.58500422]
[1773639300362,2.33270707,2261.2,2260.5,6.58500422]
[1773639300569,2.33270707,2261.4,2260.7,6.58500422]
[1773639300871,2.49431071,2261.2,2260.7,6.58894554]
[1773639301065,1.86128053,2260.9,2260.2,6.58500422]
[1773639301274,4.77604071,2260.7,2260.2,6.58500422]
[1773639301774,1.86128053,2261.0,2260.3,6.58500422]
[1773639301973,4.94275547,2261.1,2260.5,6.58500422]
[1773639302276,4.94275547,2260.5,2260.0,6.58500422]
[1773639302772,4.90403602,2260.1,2259.7,6.58500422]
[1773639302971,4.90403602,2260.1,2259.5,6.58500422]
[1773639303171,4.90403602,2260.5,2259.9,6.58500422]
[1773639304068,1.86128053,2260.4,2259.9,6.58500422]
[1773639304268,4.86356985,2260.3,2259.7,6.58500422]
[1773639305474,0.00400924,2260.4,2259.7,6.58500422]
[1773639305775,4.55624165,2260.6,2260.1,6.58500422]
[1773639306777,4.55972227,2260.6,2260.1,6.58500422]
[1773639307379,5.68927048,2261.8,2260.6,6.58500422]
[1773639307575,5.68927048,2261.8,2261.2,6.58500422]
[1773639307772,1.86128053,2261.8,2261.2,6.58500422]
[1773639307978,5.90541835,2261.5,2261.2,6.58500422]
[1773639308180,5.90541835,2261.5,2260.9,1.86128053]
[1773639308181,5.90541835,2261.5,2261.0,6.58500422]
[1773639308482,5.91092947,2261.5,2261.0,6.59034897]
[1773639309770,5.91092947,2261.5,2261.0,0.00534475]
[1773639310180,5.91092947,2261.5,2261.0,6.59034897]
[1773639313280,6.15267136,2262.3,2261.3,6.58500422]
[1773639313782,6.15267136,2262.3,2261.4,6.58500422]
[1773639314183,6.15620228,2262.3,2261.4,6.58500422]
[1773639322495,6.14913323,2262.6,2261.4,6.58500422]
[1773639323487,6.15224028,2262.6,2261.4,6.58500422]
[1773639324192,6.15224028,2262.6,2261.3,10.408]
[1773639324193,0.00310705,2262.6,2261.6,6.93186522]
[1773639325390,6.26206431,2262.6,2261.6,6.93186522]
[1773639330807,6.26206431,2262.6,2261.8,6.93186522]
[1773639331604,6.93160657,2262.5,2261.4,6.93186522]
[1773639331994,6.93160657,2262.5,2261.6,6.93186522]
[1773639338706,6.93160657,2262.1,2261.4,6.93186522]
[1773639341710,6.93160657,2262.4,2261.6,6.93186522]
[1773639347311,6.93160657,2262.1,2261.4,6.93186522]
[1773639347515,6.93160657,2262.3,2261.5,6.93186522]
[1773639348917,6.93160657,2262.3,2261.7,6.93186522]
[1773639353816,7.03749799,2262.5,2261.7,6.93186522]
[1773639354121,7.04060504,2262.6,2261.7,6.93186522]
[1773639361026,7.04060504,2262.6,2261.1,7.12347961]
[1773639361027,7.19289816,2262.1,2261.1,7.12347961]
[1773639362536,7.19289816,2262.1,2261.2,7.12347961]
[1773639364027,1.8640109,2262.6,2261.5,7.12347961]
[1773639364228,7.19289816,2262.4,2261.5,7.12347961]
[1773639364427,7.19289816,2262.4,2261.7,7.12347961]
[1773639366229,0.00310705,2262.6,2261.9,7.12347961]
[1773639366426,7.19289816,2262.8,2261.9,7.12347961]
[1773639366728,7.19289816,2262.7,2261.9,7.12347961]
[1773639367427,7.19701678,2262.7,2261.9,7.12347961]
[1773639368926,0.00411862,2262.7,2261.9,7.12347961]
[1773639369728,7.19701678,2262.7,2261.9,7.12347961]
[1773639371226,0.00411862,2262.7,2261.9,7.12347961]
[1773639371432,0.00411862,2262.7,2262.1,7.12347961]
[1773639371628,10.8528451,2263.3,2262.3,7.12347961]
[1773639371832,7.19289816,2263.3,2262.5,7.12347961]
[1773639372727,7.19654323,2263.3,2262.5,7.12347961]
[1773639376733,7.19289816,2263.2,2262.5,7.12347961]
[1773639378232,7.19289816,2263.2,2262.6,17.58547961]
[1773639378434,7.19289816,2263.2,2262.6,17.58894086]
[1773639380040,7.19289816,2263.0,2262.6,10.46546125]
[1773639381345,7.19289816,2262.8,2262.6,9.64642872]
[1773639381642,7.19289816,2262.8,2262.6,8.96650216]
[1773639381946,7.19289816,2262.8,2262.2,7.12347961]
[1773639382845,7.19289816,2262.8,2262.2,7.12879248]
[1773639383844,6.9887768,2262.6,2262.2,7.12879248]
[1773639385548,6.9887768,2263.0,2262.3,6.8147558]
[1773639387648,6.9887768,2263.0,2262.4,8.67480564]
[1773639387849,6.9887768,2263.2,2262.7,6.8147558]
[1773639388151,6.9887768,2263.1,2262.7,6.8147558]
[1773639388646,6.9887768,2263.1,2262.7,17.2997558]
[1773639389050,6.9887768,2263.1,2262.7,10.485]
[1773639389949,6.9887768,2263.1,2262.7,17.2997558]
[1773639391854,6.9887768,2263.2,2262.8,6.8147558]
[1773639392055,6.27442187,2263.3,2263.0,6.8147558]
[1773639393057,6.27985149,2263.3,2263.0,6.8147558]
[1773639393658,0.00542962,2263.3,2263.0,6.8147558]
[1773639393855,6.27275762,2263.4,2263.0,6.8147558]
[1773639394856,6.27641983,2263.4,2263.0,6.8147558]
[1773639396054,6.26300396,2263.4,2263.0,6.8147558]
[1773639397456,0.00366221,2263.4,2263.0,6.8147558]
[1773639397860,6.23938186,2263.4,2263.0,6.8147558]
[1773639398163,6.23571965,2263.6,2263.1,6.8147558]
[1773639398360,6.23571965,2263.8,2263.2,6.8147558]
[1773639398577,6.23571965,2263.6,2263.1,10.511]
[1773639399165,6.24074747,2263.6,2263.1,10.511]
[1773639399370,6.24074747,2263.6,2263.1,17.3257558]
[1773639400264,6.24074747,2263.6,2263.2,6.8147558]
[1773639400855,6.24074747,2263.6,2263.1,10.511]
[1773639401056,6.24074747,2263.6,2263.1,17.3257558]
[1773639401364,6.24074747,2263.6,2263.1,10.511]
[1773639401862,6.24074747,2263.6,2263.1,17.3257558]
[1773639402466,6.24074747,2263.6,2263.1,10.511]
[1773639402660,6.24074747,2263.6,2263.1,17.3257558]
[1773639405363,6.24074747,2263.6,2263.2,6.8147558]
[1773639408965,3.90291116,2263.6,2263.2,6.8147558]
[1773639410168,5.762961,2263.6,2262.8,6.8147558]
[1773639410363,3.90291116,2263.6,2263.0,6.8147558]
[1773639410565,0.00502782,2263.6,2263.2,6.8147558]
[1773639411764,0.00502782,2263.6,2263.4,6.8147558]
[1773639416870,1.86004984,2264.0,2263.4,6.8147558]
[1773639416871,3.31596319,2264.0,2263.5,6.67353205]
[1773639417772,3.32156439,2264.0,2263.5,6.67353205]
[1773639420379,12.41404984,2264.5,2263.5,6.67353205]
[1773639420380,3.69064341,2264.5,2263.9,6.67353205]
[1773639420574,3.29641951,2264.6,2264.2,6.67353205]
[1773639420872,5.45455882,2264.5,2264.2,6.67353205]
[1773639421268,8.73888336,2264.5,2264.2,6.67353205]
[1773639421466,0.00467669,2264.5,2264.2,6.6792146]
[1773639421666,5.4223829,2264.5,2264.2,6.6792146]
[1773639421873,0.00467669,2264.5,2264.2,6.6792146]
[1773639423681,3.26957199,2264.6,2264.2,6.6792146]
[1773639424176,3.29133799,2264.9,2264.6,6.67353205]
[1773639424378,3.29133799,2265.2,2264.6,6.67353205]
[1773639424682,0.00367588,2265.2,2265.0,6.67353205]
[1773639426078,3.31238067,2265.6,2265.0,6.67353205]
[1773639426474,3.31605655,2265.9,2265.4,6.67353205]
[1773639427076,3.32157147,2265.9,2265.4,6.67353205]
[1773639428687,0.00551492,2265.9,2265.7,6.67353205]
[1773639428882,0.00551492,2265.9,2265.2,6.67353205]
[1773639429078,3.40586486,2265.8,2265.2,6.67353205]
[1773639429484,3.40586486,2265.4,2264.7,6.67353205]
[1773639429684,3.40586486,2265.5,2264.9,6.67353205]
[1773639429984,3.39361597,2265.6,2265.1,6.67353205]